Workbook

Sheet DifferDemonsBoxSetting
B1: Id | C1: Name | D1: MainCost | E1: SecondaryCost | F1: LevelLimit | G1: ExtraItem | H1: StarDifferDemons | I1: SeasonTimes | J1: SeasonOpen | K1: SeasonEnd | L1: RandomPool | M1: ShowTimes | N1: LimitPrivigele
B2: int | C2: string | D2: mut,int#int,2 | E2: int | F2: int | G2: mut,int#int,1 | H2: mut,int#int,1 | I2: int | J2: string | K2: string | L2: int | M2: int | N2: int
B3: 2 | C3: 0 | D3: 2 | E3: 2 | F3: 2 | G3: 2 | H3: 3 | I3: 2 | J3: 2 | K3: 2 | L3: 4 | M3: 3 | N3: 2
B4: 索引 | C4: 名称 | D4: 物品消耗 | E4: 抽取次数 | F4: 等级限制 | G4: 额外赠送物品 | H4: 主打异妖 | I4: 期数 | J4: 周期时间开始时间 | K4: 周期时间结束时间 | L4: 随机招募库 | M4: 界面显示必出次数 | N4: 每日最大抽取次数对应的vip权限 关联viplevel表
A5: 默认值
A6: 正确性校对
A7: 校对值
B8: 1 | C8: 第一期密盒单抽 | D8: 21#1 | E8: 1 | F8: 0 | G8: 22#1 | H8: 6013#6014#6015#6016 | I8: 1 | J8: 20190510 100000 | K8: 20190517 100000 | L8: 8 | M8: 20 | N8: 6
B9: 2 | C9: 第一期密盒十连抽 | D9: 21#10 | E9: 10 | F9: 0 | G9: 22#11 | H9: 6013#6014#6015#6016 | I9: 1 | J9: 20190510 100000 | K9: 20190517 100000 | L9: 8 | M9: 20 | N9: 6
B10: 3 | C10: 第二期密盒单抽 | D10: 21#1 | E10: 1 | F10: 0 | G10: 22#1 | H10: 6017#6018#6019#6020 | I10: 2 | J10: 20190517 100000 | K10: 20190524 100000 | L10: 8 | M10: 20 | N10: 6
B11: 4 | C11: 第二期密盒十连抽 | D11: 21#10 | E11: 10 | F11: 0 | G11: 22#11 | H11: 6017#6018#6019#6020 | I11: 2 | J11: 20190517 100000 | K11: 20190524 100000 | L11: 8 | M11: 20 | N11: 6
B12: 5 | C12: 第三期密盒单抽 | D12: 21#1 | E12: 1 | F12: 0 | G12: 22#1 | H12: 6021#6022#6023#6024 | I12: 3 | J12: 20190524 100000 | K12: 20190531 100000 | L12: 8 | M12: 20 | N12: 6
B13: 6 | C13: 第三期密盒十连抽 | D13: 21#10 | E13: 10 | F13: 0 | G13: 22#11 | H13: 6021#6022#6023#6024 | I13: 3 | J13: 20190524 100000 | K13: 20190531 100000 | L13: 8 | M13: 20 | N13: 6
B14: 7 | C14: 第四期密盒单抽 | D14: 21#1 | E14: 1 | F14: 0 | G14: 22#1 | H14: 6025#6026#6027#6028 | I14: 4 | J14: 20190531 100000 | K14: 20190601 100000 | L14: 8 | M14: 20 | N14: 6
B15: 8 | C15: 第四期密盒十连抽 | D15: 21#10 | E15: 10 | F15: 0 | G15: 22#11 | H15: 6025#6026#6027#6028 | I15: 4 | J15: 20190531 100000 | K15: 20190601 100000 | L15: 8 | M15: 20 | N15: 6
B16: 9 | C16: 第五期密盒单抽 | D16: 21#1 | E16: 1 | F16: 0 | G16: 22#1 | H16: 6029#6030#6031#6032 | I16: 5 | J16: 20190601 100000 | K16: 20190608 100000 | L16: 8 | M16: 20 | N16: 6
B17: 10 | C17: 第五期密盒十连抽 | D17: 21#10 | E17: 10 | F17: 0 | G17: 22#11 | H17: 6029#6030#6031#6032 | I17: 5 | J17: 20190601 100000 | K17: 20190608 100000 | L17: 8 | M17: 20 | N17: 6
B18: 11 | C18: 第六期密盒单抽 | D18: 21#1 | E18: 1 | F18: 0 | G18: 22#1 | H18: 6033#6034#6035#6036 | I18: 6 | J18: 20190608 100000 | K18: 20190615 100000 | L18: 8 | M18: 20 | N18: 6
B19: 12 | C19: 第六期密盒十连抽 | D19: 21#10 | E19: 10 | F19: 0 | G19: 22#11 | H19: 6033#6034#6035#6036 | I19: 6 | J19: 20190608 100000 | K19: 20190615 100000 | L19: 8 | M19: 20 | N19: 6
B20: 13 | C20: 第七期密盒单抽 | D20: 21#1 | E20: 1 | F20: 0 | G20: 22#1 | H20: 6013#6014#6015#6016 | I20: 7 | J20: 20190615 100000 | K20: 20190622 100000 | L20: 8 | M20: 20 | N20: 6
B21: 14 | C21: 第七期密盒十连抽 | D21: 21#10 | E21: 10 | F21: 0 | G21: 22#11 | H21: 6013#6014#6015#6016 | I21: 7 | J21: 20190615 100000 | K21: 20190622 100000 | L21: 8 | M21: 20 | N21: 6
B22: 15 | C22: 第八期密盒单抽 | D22: 21#1 | E22: 1 | F22: 0 | G22: 22#1 | H22: 6017#6018#6019#6020 | I22: 8 | J22: 20190622 100000 | K22: =J24 -> 20190701 100000 | L22: 8 | M22: 20 | N22: 6
B23: 16 | C23: 第八期密盒十连抽 | D23: 21#10 | E23: 10 | F23: 0 | G23: 22#11 | H23: 6017#6018#6019#6020 | I23: 8 | J23: 20190622 100000 | K23: =J24 -> 20190701 100000 | L23: 8 | M23: 20 | N23: 6
B24: 17 | C24: 第九期密盒单抽 | D24: 21#1 | E24: 1 | F24: 0 | G24: 22#1 | H24: 6021#6022#6023#6024 | I24: 9 | J24: 20190701 100000 | K24: 20190708 100000 | L24: 8 | M24: 20 | N24: 6
B25: 18 | C25: 第九期密盒十连抽 | D25: 21#10 | E25: 10 | F25: 0 | G25: 22#11 | H25: 6021#6022#6023#6024 | I25: 9 | J25: 20190701 100000 | K25: 20190708 100000 | L25: 8 | M25: 20 | N25: 6
B26: 19 | C26: 第十期密盒单抽 | D26: 21#1 | E26: 1 | F26: 0 | G26: 22#1 | H26: 6025#6026#6027#6028 | I26: =I24+1 -> 10 | J26: 20190708 100000 | K26: 20190715 100000 | L26: 8 | M26: 20 | N26: 6
B27: 20 | C27: 第十期密盒十连抽 | D27: 21#10 | E27: 10 | F27: 0 | G27: 22#11 | H27: 6025#6026#6027#6028 | I27: =I25+1 -> 10 | J27: 20190708 100000 | K27: 20190715 100000 | L27: 8 | M27: 20 | N27: 6
B28: 21 | C28: 第十一期密盒单抽 | D28: 21#1 | E28: 1 | F28: 0 | G28: 22#1 | H28: 6029#6030#6031#6032 | I28: 11 | J28: 20190715 100000 | K28: 20190722 100000 | L28: 8 | M28: 20 | N28: 6
B29: 22 | C29: 第十一期密盒十连抽 | D29: 21#10 | E29: 10 | F29: 0 | G29: 22#11 | H29: 6029#6030#6031#6032 | I29: 11 | J29: 20190715 100000 | K29: 20190722 100000 | L29: 8 | M29: 20 | N29: 6
B30: 23 | C30: 第十二期密盒单抽 | D30: 21#1 | E30: 1 | F30: 0 | G30: 22#1 | H30: 6033#6034#6035#6036 | I30: 12 | J30: 20190722 100000 | K30: 20190729 100000 | L30: 8 | M30: 20 | N30: 6
B31: 24 | C31: 第十二期密盒十连抽 | D31: 21#10 | E31: 10 | F31: 0 | G31: 22#11 | H31: 6033#6034#6035#6036 | I31: 12 | J31: 20190722 100000 | K31: 20190729 100000 | L31: 8 | M31: 20 | N31: 6
B32: 25 | C32: 第十三期密盒单抽 | D32: 21#1 | E32: 1 | F32: 0 | G32: 22#1 | H32: 6013#6014#6015#6016 | I32: 13 | J32: 20190729 100000 | K32: 20190805 100000 | L32: 8 | M32: 20 | N32: 6
B33: 26 | C33: 第十三期密盒十连抽 | D33: 21#10 | E33: 10 | F33: 0 | G33: 22#11 | H33: 6013#6014#6015#6016 | I33: 13 | J33: 20190729 100000 | K33: 20190805 100000 | L33: 8 | M33: 20 | N33: 6
B34: 27 | C34: 第十四期密盒单抽 | D34: 21#1 | E34: 1 | F34: 0 | G34: 22#1 | H34: 6017#6018#6019#6020 | I34: 14 | J34: 20190805 100000 | K34: 20190812 100000 | L34: 8 | M34: 20 | N34: 6
B35: 28 | C35: 第十四期密盒十连抽 | D35: 21#10 | E35: 10 | F35: 0 | G35: 22#11 | H35: 6017#6018#6019#6020 | I35: 14 | J35: 20190805 100000 | K35: 20190812 100000 | L35: 8 | M35: 20 | N35: 6
B36: 29 | C36: 第十五期密盒单抽 | D36: 21#1 | E36: 1 | F36: 0 | G36: 22#1 | H36: 6021#6022#6023#6024 | I36: 15 | J36: 20190812 100000 | K36: 20190819 100000 | L36: 8 | M36: 20 | N36: 6
B37: 30 | C37: 第十五期密盒十连抽 | D37: 21#10 | E37: 10 | F37: 0 | G37: 22#11 | H37: 6021#6022#6023#6024 | I37: 15 | J37: 20190812 100000 | K37: 20190819 100000 | L37: 8 | M37: 20 | N37: 6
B38: 31 | C38: 第十六期密盒单抽 | D38: 21#1 | E38: 1 | F38: 0 | G38: 22#1 | H38: 6025#6026#6027#6028 | I38: 16 | J38: 20190819 100000 | K38: 20190826 100000 | L38: 8 | M38: 20 | N38: 6
B39: 32 | C39: 第十六期密盒十连抽 | D39: 21#10 | E39: 10 | F39: 0 | G39: 22#11 | H39: 6025#6026#6027#6028 | I39: 16 | J39: 20190819 100000 | K39: 20190826 100000 | L39: 8 | M39: 20 | N39: 6
B40: 33 | C40: 第十七期密盒单抽 | D40: 21#1 | E40: 1 | F40: 0 | G40: 22#1 | H40: 6029#6030#6031#6032 | I40: 17 | J40: 20190826 100000 | K40: 20190902 100000 | L40: 8 | M40: 20 | N40: 6
B41: 34 | C41: 第十七期密盒十连抽 | D41: 21#10 | E41: 10 | F41: 0 | G41: 22#11 | H41: 6029#6030#6031#6032 | I41: 17 | J41: 20190826 100000 | K41: 20190902 100000 | L41: 8 | M41: 20 | N41: 6
B42: 35 | C42: 第十八期密盒单抽 | D42: 21#1 | E42: 1 | F42: 0 | G42: 22#1 | H42: 6033#6034#6035#6036 | I42: 18 | J42: 20190902 100000 | K42: 20190909 100000 | L42: 8 | M42: 20 | N42: 6
B43: 36 | C43: 第十八期密盒十连抽 | D43: 21#10 | E43: 10 | F43: 0 | G43: 22#11 | H43: 6033#6034#6035#6036 | I43: 18 | J43: 20190902 100000 | K43: 20190909 100000 | L43: 8 | M43: 20 | N43: 6
B44: 37 | C44: 第十九期密盒单抽 | D44: 21#1 | E44: 1 | F44: 0 | G44: 22#1 | H44: 6013#6014#6015#6016 | I44: 19 | J44: 20190909 100000 | K44: 20190916 100000 | L44: 8 | M44: 20 | N44: 6
B45: 38 | C45: 第十九期密盒十连抽 | D45: 21#10 | E45: 10 | F45: 0 | G45: 22#11 | H45: 6013#6014#6015#6016 | I45: 19 | J45: 20190909 100000 | K45: 20190916 100000 | L45: 8 | M45: 20 | N45: 6
B46: 39 | C46: 第二十期密盒单抽 | D46: 21#1 | E46: 1 | F46: 0 | G46: 22#1 | H46: 6017#6018#6019#6020 | I46: 20 | J46: 20190916 100000 | K46: 20190923 100000 | L46: 8 | M46: 20 | N46: 6
B47: 40 | C47: 第二十期密盒十连抽 | D47: 21#10 | E47: 10 | F47: 0 | G47: 22#11 | H47: 6017#6018#6019#6020 | I47: 20 | J47: 20190916 100000 | K47: 20190923 100000 | L47: 8 | M47: 20 | N47: 6
B48: 41 | C48: 第二十一期密盒单抽 | D48: 21#1 | E48: 1 | F48: 0 | G48: 22#1 | H48: 6021#6022#6023#6024 | I48: 21 | J48: 20190923 100000 | K48: 20190930 100000 | L48: 8 | M48: 20 | N48: 6
B49: 42 | C49: 第二十一期密盒十连抽 | D49: 21#10 | E49: 10 | F49: 0 | G49: 22#11 | H49: 6021#6022#6023#6024 | I49: 21 | J49: 20190923 100000 | K49: 20190930 100000 | L49: 8 | M49: 20 | N49: 6
B50: 43 | C50: 第二十二期密盒单抽 | D50: 21#1 | E50: 1 | F50: 0 | G50: 22#1 | H50: 6025#6026#6027#6028 | I50: 22 | J50: 20190930 100000 | K50: 20191007 100000 | L50: 8 | M50: 20 | N50: 6
B51: 44 | C51: 第二十二期密盒十连抽 | D51: 21#10 | E51: 10 | F51: 0 | G51: 22#11 | H51: 6025#6026#6027#6028 | I51: 22 | J51: 20190930 100000 | K51: 20191007 100000 | L51: 8 | M51: 20 | N51: 6
B52: 45 | C52: 第二十三期密盒单抽 | D52: 21#1 | E52: 1 | F52: 0 | G52: 22#1 | H52: 6029#6030#6031#6032 | I52: 23 | J52: 20191007 100000 | K52: 20191014 100000 | L52: 8 | M52: 20 | N52: 6
B53: 46 | C53: 第二十三期密盒十连抽 | D53: 21#10 | E53: 10 | F53: 0 | G53: 22#11 | H53: 6029#6030#6031#6032 | I53: 23 | J53: 20191007 100000 | K53: 20191014 100000 | L53: 8 | M53: 20 | N53: 6
B54: 47 | C54: 第24期秘盒单抽 | D54: =D52 -> 21#1 | E54: =E52 -> 1 | F54: =F52 -> 0 | G54: =G52 -> 22#1 | H54: 6033#6034#6035#6036 | I54: =I52+1 -> 24 | J54: 20191014 100000 | K54: 20191021 100000 | L54: 8 | M54: 20 | N54: 6
B55: 48 | C55: 第24期秘盒十连抽 | D55: =D53 -> 21#10 | E55: =E53 -> 10 | F55: =F53 -> 0 | G55: =G53 -> 22#11 | H55: 6033#6034#6035#6036 | I55: =I53+1 -> 24 | J55: 20191014 100000 | K55: 20191021 100000 | L55: 8 | M55: 20 | N55: 6
B56: 49 | C56: 第25期秘盒单抽 | D56: 21#1 | E56: 1 | F56: 0 | G56: 22#1 | H56: 6013#6014#6015#6016 | I56: 25 | J56: 20191021 100000 | K56: 20191028 100000 | L56: 8 | M56: 20 | N56: 6
B57: 50 | C57: 第25期秘盒十连抽 | D57: 21#10 | E57: 10 | F57: 0 | G57: 22#11 | H57: 6013#6014#6015#6016 | I57: 25 | J57: 20191021 100000 | K57: 20191028 100000 | L57: 8 | M57: 20 | N57: 6
B58: 51 | C58: 第26期秘盒单抽 | D58: 21#1 | E58: 1 | F58: 0 | G58: 22#1 | H58: 6017#6018#6019#6020 | I58: 26 | J58: 20191028 100000 | K58: 20191104 100000 | L58: 8 | M58: 20 | N58: 6
B59: 52 | C59: 第26期秘盒十连抽 | D59: 21#10 | E59: 10 | F59: 0 | G59: 22#11 | H59: 6017#6018#6019#6020 | I59: 26 | J59: 20191028 100000 | K59: 20191104 100000 | L59: 8 | M59: 20 | N59: 6
B60: 53 | C60: 第27期秘盒单抽 | D60: 21#1 | E60: 1 | F60: 0 | G60: 22#1 | H60: 6021#6022#6023#6024 | I60: 27 | J60: 20191104 100000 | K60: 20191111 100000 | L60: 8 | M60: 20 | N60: 6
B61: 54 | C61: 第27期秘盒十连抽 | D61: 21#10 | E61: 10 | F61: 0 | G61: 22#11 | H61: 6021#6022#6023#6024 | I61: 27 | J61: 20191104 100000 | K61: 20191111 100000 | L61: 8 | M61: 20 | N61: 6
B62: 55 | C62: 第28期秘盒单抽 | D62: 21#1 | E62: 1 | F62: 0 | G62: 22#1 | H62: 6025#6026#6027#6028 | I62: 28 | J62: 20191111 100000 | K62: 20191118 100000 | L62: 8 | M62: 20 | N62: 6
B63: 56 | C63: 第28期秘盒十连抽 | D63: 21#10 | E63: 10 | F63: 0 | G63: 22#11 | H63: 6025#6026#6027#6028 | I63: 28 | J63: 20191111 100000 | K63: 20191118 100000 | L63: 8 | M63: 20 | N63: 6
B64: 57 | C64: 第29期秘盒单抽 | D64: 21#1 | E64: 1 | F64: 0 | G64: 22#1 | H64: 6029#6030#6031#6032 | I64: 29 | J64: 20191118 100000 | K64: 20191125 100000 | L64: 8 | M64: 20 | N64: 6
B65: 58 | C65: 第29期秘盒十连抽 | D65: 21#10 | E65: 10 | F65: 0 | G65: 22#11 | H65: 6029#6030#6031#6032 | I65: 29 | J65: 20191118 100000 | K65: 20191125 100000 | L65: 8 | M65: 20 | N65: 6
B66: 59 | C66: 第30期秘盒单抽 | D66: 21#1 | E66: 1 | F66: 0 | G66: 22#1 | H66: 6033#6034#6035#6036 | I66: 30 | J66: 20191125 100000 | K66: 20191202 100000 | L66: 8 | M66: 20 | N66: 6
B67: 60 | C67: 第30期秘盒十连抽 | D67: 21#10 | E67: 10 | F67: 0 | G67: 22#11 | H67: 6033#6034#6035#6036 | I67: 30 | J67: 20191125 100000 | K67: 20191202 100000 | L67: 8 | M67: 20 | N67: 6
B68: 61 | C68: 第31期秘盒单抽 | D68: 21#1 | E68: 1 | F68: 0 | G68: 22#1 | H68: 6013#6014#6015#6016 | I68: 31 | J68: 20191202 100000 | K68: 20191209 100000 | L68: 8 | M68: 20 | N68: 6
B69: 62 | C69: 第31期秘盒十连抽 | D69: 21#10 | E69: 10 | F69: 0 | G69: 22#11 | H69: 6013#6014#6015#6016 | I69: 31 | J69: 20191202 100000 | K69: 20191209 100000 | L69: 8 | M69: 20 | N69: 6
B70: 63 | C70: 第32期秘盒单抽 | D70: 21#1 | E70: 1 | F70: 0 | G70: 22#1 | H70: 6017#6018#6019#6020 | I70: 32 | J70: 20191209 100000 | K70: 20191216 100000 | L70: 8 | M70: 20 | N70: 6
B71: 64 | C71: 第32期秘盒十连抽 | D71: 21#10 | E71: 10 | F71: 0 | G71: 22#11 | H71: 6017#6018#6019#6020 | I71: 32 | J71: 20191209 100000 | K71: 20191216 100000 | L71: 8 | M71: 20 | N71: 6
B72: 65 | C72: 第33期秘盒单抽 | D72: 21#1 | E72: 1 | F72: 0 | G72: 22#1 | H72: 6021#6022#6023#6024 | I72: 33 | J72: 20191216 100000 | K72: 20191223 100000 | L72: 8 | M72: 20 | N72: 6
B73: 66 | C73: 第33期秘盒十连抽 | D73: 21#10 | E73: 10 | F73: 0 | G73: 22#11 | H73: 6021#6022#6023#6024 | I73: 33 | J73: 20191216 100000 | K73: 20191223 100000 | L73: 8 | M73: 20 | N73: 6
B74: 67 | C74: 第34期秘盒单抽 | D74: 21#1 | E74: 1 | F74: 0 | G74: 22#1 | H74: 6025#6026#6027#6028 | I74: 34 | J74: 20191223 100000 | K74: 20191230 100000 | L74: 8 | M74: 20 | N74: 6
B75: 68 | C75: 第34期秘盒十连抽 | D75: 21#10 | E75: 10 | F75: 0 | G75: 22#11 | H75: 6025#6026#6027#6028 | I75: 34 | J75: 20191223 100000 | K75: 20191230 100000 | L75: 8 | M75: 20 | N75: 6
B76: 69 | C76: 第35期秘盒单抽 | D76: 21#1 | E76: 1 | F76: 0 | G76: 22#1 | H76: 6029#6030#6031#6032 | I76: 35 | J76: 20191230 100000 | K76: 20200106 100000 | L76: 8 | M76: 20 | N76: 6
B77: 70 | C77: 第35期秘盒十连抽 | D77: 21#10 | E77: 10 | F77: 0 | G77: 22#11 | H77: 6029#6030#6031#6032 | I77: 35 | J77: 20191230 100000 | K77: 20200106 100000 | L77: 8 | M77: 20 | N77: 6
B78: 71 | C78: 第36期秘盒单抽 | D78: 21#1 | E78: 1 | F78: 0 | G78: 22#1 | H78: 6033#6034#6035#6036 | I78: 36 | J78: 20200106 100000 | K78: 20200113 100000 | L78: 8 | M78: 20 | N78: 6
B79: 72 | C79: 第36期秘盒十连抽 | D79: 21#10 | E79: 10 | F79: 0 | G79: 22#11 | H79: 6033#6034#6035#6036 | I79: 36 | J79: 20200106 100000 | K79: 20200113 100000 | L79: 8 | M79: 20 | N79: 6
B80: 73 | C80: 第37期秘盒单抽 | D80: 21#1 | E80: 1 | F80: 0 | G80: 22#1 | H80: 6013#6014#6015#6016 | I80: 37 | J80: 20200113 100000 | K80: 20200120 100000 | L80: 8 | M80: 20 | N80: 6
B81: 74 | C81: 第37期秘盒十连抽 | D81: 21#10 | E81: 10 | F81: 0 | G81: 22#11 | H81: 6013#6014#6015#6016 | I81: 37 | J81: 20200113 100000 | K81: 20200120 100000 | L81: 8 | M81: 20 | N81: 6
B82: 75 | C82: 第38期秘盒单抽 | D82: 21#1 | E82: 1 | F82: 0 | G82: 22#1 | H82: 6017#6018#6019#6020 | I82: 38 | J82: 20200120 100000 | K82: 20200127 100000 | L82: 8 | M82: 20 | N82: 6
B83: 76 | C83: 第38期秘盒十连抽 | D83: 21#10 | E83: 10 | F83: 0 | G83: 22#11 | H83: 6017#6018#6019#6020 | I83: 38 | J83: 20200120 100000 | K83: 20200127 100000 | L83: 8 | M83: 20 | N83: 6
B84: 77 | C84: 第39期秘盒单抽 | D84: 21#1 | E84: 1 | F84: 0 | G84: 22#1 | H84: 6021#6022#6023#6024 | I84: 39 | J84: 20200127 100000 | K84: 20200203 100000 | L84: 8 | M84: 20 | N84: 6
B85: 78 | C85: 第39期秘盒十连抽 | D85: 21#10 | E85: 10 | F85: 0 | G85: 22#11 | H85: 6021#6022#6023#6024 | I85: 39 | J85: 20200127 100000 | K85: 20200203 100000 | L85: 8 | M85: 20 | N85: 6
B86: 79 | C86: 第40期秘盒单抽 | D86: 21#1 | E86: 1 | F86: 0 | G86: 22#1 | H86: 6025#6026#6027#6028 | I86: 40 | J86: 20200203 100000 | K86: 20200210 100000 | L86: 8 | M86: 20 | N86: 6
B87: 80 | C87: 第40期秘盒十连抽 | D87: =D85 -> 21#10 | E87: =E85 -> 10 | F87: =F85 -> 0 | G87: =G85 -> 22#11 | H87: 6025#6026#6027#6028 | I87: =I85+1 -> 40 | J87: 20200203 100000 | K87: 20200210 100000 | L87: 8 | M87: 20 | N87: 6
B88: 81 | C88: 第41期秘盒单抽 | D88: 21#1 | E88: 1 | F88: 0 | G88: 22#1 | H88: 6029#6030#6031#6032 | I88: 41 | J88: 20200210 100000 | K88: 20200217 100000 | L88: 8 | M88: 20 | N88: 6
B89: 82 | C89: 第41期秘盒十连抽 | D89: 21#10 | E89: 10 | F89: 0 | G89: 22#11 | H89: 6029#6030#6031#6032 | I89: 41 | J89: 20200210 100000 | K89: 20200217 100000 | L89: 8 | M89: 20 | N89: 6
B90: 83 | C90: 第42期秘盒单抽 | D90: 21#1 | E90: 1 | F90: 0 | G90: 22#1 | H90: 6033#6034#6035#6036 | I90: 42 | J90: 20200217 100000 | K90: 20200224 100000 | L90: 8 | M90: 20 | N90: 6
B91: 84 | C91: 第42期秘盒十连抽 | D91: 21#10 | E91: 10 | F91: 0 | G91: 22#11 | H91: 6033#6034#6035#6036 | I91: 42 | J91: 20200217 100000 | K91: 20200224 100000 | L91: 8 | M91: 20 | N91: 6
B92: 85 | C92: 第43期秘盒单抽 | D92: 21#1 | E92: 1 | F92: 0 | G92: 22#1 | H92: 6013#6014#6015#6016 | I92: 43 | J92: 20200224 100000 | K92: 20200302 100000 | L92: 8 | M92: 20 | N92: 6
B93: 86 | C93: 第43期秘盒十连抽 | D93: 21#10 | E93: 10 | F93: 0 | G93: 22#11 | H93: 6013#6014#6015#6016 | I93: 43 | J93: 20200224 100000 | K93: 20200302 100000 | L93: 8 | M93: 20 | N93: 6
B94: 87 | C94: 第44期秘盒单抽 | D94: 21#1 | E94: 1 | F94: 0 | G94: 22#1 | H94: 6017#6018#6019#6020 | I94: 44 | J94: 20200302 100000 | K94: 20200309 100000 | L94: 8 | M94: 20 | N94: 6
B95: 88 | C95: 第44期秘盒十连抽 | D95: 21#10 | E95: 10 | F95: 0 | G95: 22#11 | H95: 6017#6018#6019#6020 | I95: 44 | J95: 20200302 100000 | K95: 20200309 100000 | L95: 8 | M95: 20 | N95: 6
B96: 89 | C96: 第45期秘盒单抽 | D96: 21#1 | E96: 1 | F96: 0 | G96: 22#1 | H96: 6021#6022#6023#6024 | I96: 45 | J96: 20200309 100000 | K96: 20200316 100000 | L96: 8 | M96: 20 | N96: 6
B97: 90 | C97: 第45期秘盒十连抽 | D97: 21#10 | E97: 10 | F97: 0 | G97: 22#11 | H97: 6021#6022#6023#6024 | I97: 45 | J97: 20200309 100000 | K97: 20200316 100000 | L97: 8 | M97: 20 | N97: 6
B98: 91 | C98: 第46期秘盒单抽 | D98: 21#1 | E98: 1 | F98: 0 | G98: 22#1 | H98: 6025#6026#6027#6028 | I98: 46 | J98: 20200316 100000 | K98: 20200323 100000 | L98: 8 | M98: 20 | N98: 6
B99: 92 | C99: 第46期秘盒十连抽 | D99: 21#10 | E99: 10 | F99: 0 | G99: 22#11 | H99: 6025#6026#6027#6028 | I99: 46 | J99: 20200316 100000 | K99: 20200323 100000 | L99: 8 | M99: 20 | N99: 6
B100: 93 | C100: 第47期秘盒单抽 | D100: 21#1 | E100: 1 | F100: 0 | G100: 22#1 | H100: 6029#6030#6031#6032 | I100: 47 | J100: 20200323 100000 | K100: 20200330 100000 | L100: 8 | M100: 20 | N100: 6
B101: 94 | C101: 第47期秘盒十连抽 | D101: 21#10 | E101: 10 | F101: 0 | G101: 22#11 | H101: 6029#6030#6031#6032 | I101: 47 | J101: 20200323 100000 | K101: 20200330 100000 | L101: 8 | M101: 20 | N101: 6
B102: 95 | C102: 第48期秘盒单抽 | D102: 21#1 | E102: 1 | F102: 0 | G102: 22#1 | H102: 6033#6034#6035#6036 | I102: 48 | J102: 20200330 100000 | K102: 20200406 100000 | L102: 8 | M102: 20 | N102: 6
B103: 96 | C103: 第48期秘盒十连抽 | D103: 21#10 | E103: 10 | F103: 0 | G103: 22#11 | H103: 6033#6034#6035#6036 | I103: 48 | J103: 20200330 100000 | K103: 20200406 100000 | L103: 8 | M103: 20 | N103: 6
B104: 97 | C104: 第49期秘盒单抽 | D104: 21#1 | E104: 1 | F104: 0 | G104: 22#1 | H104: 6013#6014#6015#6016 | I104: 49 | J104: 20200406 100000 | K104: 20200413 100000 | L104: 8 | M104: 20 | N104: 6
B105: 98 | C105: 第49期秘盒十连抽 | D105: 21#10 | E105: 10 | F105: 0 | G105: 22#11 | H105: 6013#6014#6015#6016 | I105: 49 | J105: 20200406 100000 | K105: 20200413 100000 | L105: 8 | M105: 20 | N105: 6
B106: 99 | C106: 第50期秘盒单抽 | D106: 21#1 | E106: 1 | F106: 0 | G106: 22#1 | H106: 6017#6018#6019#6020 | I106: 50 | J106: 20200413 100000 | K106: 20200420 100000 | L106: 8 | M106: 20 | N106: 6
B107: 100 | C107: 第50期秘盒十连抽 | D107: 21#10 | E107: 10 | F107: 0 | G107: 22#11 | H107: 6017#6018#6019#6020 | I107: 50 | J107: 20200413 100000 | K107: 20200420 100000 | L107: 8 | M107: 20 | N107: 6
B108: 101 | C108: 第51期秘盒单抽 | D108: 21#1 | E108: 1 | F108: 0 | G108: 22#1 | H108: 6021#6022#6023#6024 | I108: 51 | J108: 20200420 100000 | K108: 20200427 100000 | L108: 8 | M108: 20 | N108: 6
B109: 102 | C109: 第51期秘盒十连抽 | D109: 21#10 | E109: 10 | F109: 0 | G109: 22#11 | H109: 6021#6022#6023#6024 | I109: 51 | J109: 20200420 100000 | K109: 20200427 100000 | L109: 8 | M109: 20 | N109: 6
B110: 103 | C110: 第52期秘盒单抽 | D110: 21#1 | E110: 1 | F110: 0 | G110: 22#1 | H110: 6025#6026#6027#6028 | I110: 52 | J110: 20200427 100000 | K110: 20200504 100000 | L110: 8 | M110: 20 | N110: 6
B111: 104 | C111: 第52期秘盒十连抽 | D111: 21#10 | E111: 10 | F111: 0 | G111: 22#11 | H111: 6025#6026#6027#6028 | I111: 52 | J111: 20200427 100000 | K111: 20200504 100000 | L111: 8 | M111: 20 | N111: 6
B112: 105 | C112: 第53期秘盒单抽 | D112: 21#1 | E112: 1 | F112: 0 | G112: 22#1 | H112: 6029#6030#6031#6032 | I112: 53 | J112: 20200504 100000 | K112: 20200511 100000 | L112: 8 | M112: 20 | N112: 6
B113: 106 | C113: 第53期秘盒十连抽 | D113: 21#10 | E113: 10 | F113: 0 | G113: 22#11 | H113: 6029#6030#6031#6032 | I113: 53 | J113: 20200504 100000 | K113: 20200511 100000 | L113: 8 | M113: 20 | N113: 6
B114: 107 | C114: 第54期秘盒单抽 | D114: 21#1 | E114: 1 | F114: 0 | G114: 22#1 | H114: 6033#6034#6035#6036 | I114: 54 | J114: 20200511 100000 | K114: 20200518 100000 | L114: 8 | M114: 20 | N114: 6
B115: 108 | C115: 第54期秘盒十连抽 | D115: 21#10 | E115: 10 | F115: 0 | G115: 22#11 | H115: 6033#6034#6035#6036 | I115: 54 | J115: 20200511 100000 | K115: 20200518 100000 | L115: 8 | M115: 20 | N115: 6
B116: 109 | C116: 第55期秘盒单抽 | D116: 21#1 | E116: 1 | F116: 0 | G116: 22#1 | H116: 6013#6014#6015#6016 | I116: 55 | J116: 20200518 100000 | K116: 20200525 100000 | L116: 8 | M116: 20 | N116: 6
B117: 110 | C117: 第55期秘盒十连抽 | D117: 21#10 | E117: 10 | F117: 0 | G117: 22#11 | H117: 6013#6014#6015#6016 | I117: 55 | J117: 20200518 100000 | K117: 20200525 100000 | L117: 8 | M117: 20 | N117: 6
B118: 111 | C118: 第56期秘盒单抽 | D118: 21#1 | E118: 1 | F118: 0 | G118: 22#1 | H118: 6017#6018#6019#6020 | I118: 56 | J118: 20200525 100000 | K118: 20200601 100000 | L118: 8 | M118: 20 | N118: 6
B119: 112 | C119: 第56期秘盒十连抽 | D119: =D117 -> 21#10 | E119: =E117 -> 10 | F119: =F117 -> 0 | G119: =G117 -> 22#11 | H119: 6017#6018#6019#6020 | I119: =I117+1 -> 56 | J119: 20200525 100000 | K119: 20200601 100000 | L119: 8 | M119: 20 | N119: 6

Sheet Sheet1
C3: 橙色主打异妖
D4: 6013 | E4: =D4+1 -> 6014 | F4: =E4+1 -> 6015 | G4: =F4+1 -> 6016 | H4: =_xlfn.TEXTJOIN("#",TRUE,D4:G4) -> 
D5: =D4 -> 6013 | E5: =E4 -> 6014 | F5: =F4 -> 6015 | G5: =G4 -> 6016 | H5: =H4 -> 
D6: =D4+4 -> 6017 | E6: =E4+4 -> 6018 | F6: =F4+4 -> 6019 | G6: =G4+4 -> 6020 | H6: =_xlfn.TEXTJOIN("#",TRUE,D6:G6) -> 
D7: =D6 -> 6017 | E7: 6018 | F7: 6019 | G7: 6020
D8: =D6+4 -> 6021 | E8: =E6+4 -> 6022 | F8: =F6+4 -> 6023 | G8: =G6+4 -> 6024 | H8: =_xlfn.TEXTJOIN("#",TRUE,D8:G8) -> 
D9: =D8 -> 6021 | E9: 6022 | F9: 6023 | G9: 6024
D10: =D8+4 -> 6025 | E10: =E8+4 -> 6026 | F10: =F8+4 -> 6027 | G10: =G8+4 -> 6028 | H10: =_xlfn.TEXTJOIN("#",TRUE,D10:G10) -> 
D11: =D10 -> 6025 | E11: 6026 | F11: 6027 | G11: 6028
D12: 6029 | E12: 6030 | F12: 6031 | G12: 6032
D13: =D12 -> 6029 | E13: 6030 | F13: 6031 | G13: 6032
D14: 6033 | E14: 6034 | F14: 6035 | G14: 6036
D15: =D14 -> 6033 | E15: 6034 | F15: 6035 | G15: 6036

Sheet 周期辅助表
C3: 20191014 | D3: 100000 | E3: =C3+7 -> 20191021 | F3: =D3 -> 100000 | G3: =C3&" "&D3 -> 20191014 100000 | H3: =E3&" "&F3 -> 20191021 100000
C4: =C3 -> 20191014 | D4: =D3 -> 100000 | E4: =E3 -> 20191021 | F4: =F3 -> 100000 | G4: =C4&" "&D4 -> 20191014 100000 | H4: =E4&" "&F4 -> 20191021 100000
C5: =E4 -> 20191021 | D5: =D3 -> 100000 | E5: =C7 -> 20191028 | F5: =F3 -> 100000 | G5: 20191021 100000 | H5: 20191028 100000
C6: 20191021 | D6: 100000 | E6: 20191028 | F6: 100000 | G6: 20191021 100000 | H6: 20191028 100000
C7: =E4+7 -> 20191028 | D7: =D3 -> 100000 | E7: 20191104 | F7: =F3 -> 100000 | G7: 20191028 100000 | H7: 20191104 100000
C8: 20191028 | D8: 100000 | E8: 20191104 | F8: 100000 | G8: 20191028 100000 | H8: 20191104 100000
C9: =E7 -> 20191104 | D9: =D5 -> 100000 | E9: =C11 -> 20191111 | F9: =F5 -> 100000 | G9: 20191104 100000 | H9: 20191111 100000
C10: =C9 -> 20191104 | D10: 100000 | E10: 20191111 | F10: 100000 | G10: 20191104 100000 | H10: 20191111 100000
C11: =E7+7 -> 20191111 | D11: =D4 -> 100000 | E11: =C11+7 -> 20191118 | F11: =F4 -> 100000 | G11: 20191111 100000 | H11: 20191118 100000
C12: =C11 -> 20191111 | D12: 100000 | E12: 20191118 | F12: 100000 | G12: 20191111 100000 | H12: 20191118 100000
C13: =E11 -> 20191118 | D13: =D9 -> 100000 | E13: =C15 -> 20191125 | F13: =F9 -> 100000 | G13: 20191118 100000 | H13: 20191125 100000
C14: =C13 -> 20191118 | D14: 100000 | E14: 20191125 | F14: 100000 | G14: 20191118 100000 | H14: 20191125 100000
C15: =E11+7 -> 20191125 | D15: =D7 -> 100000 | E15: 20191202 | F15: =F7 -> 100000 | G15: 20191125 100000 | H15: 20191202 100000
C16: =C15 -> 20191125 | D16: 100000 | E16: 20191202 | F16: 100000 | G16: 20191125 100000 | H16: 20191202 100000
C17: =E15 -> 20191202 | D17: =D13 -> 100000 | E17: =C19 -> 20191209 | F17: =F13 -> 100000 | G17: 20191202 100000 | H17: 20191209 100000
C18: =C17 -> 20191202 | D18: 100000 | E18: 20191209 | F18: 100000 | G18: 20191202 100000 | H18: 20191209 100000
C19: =E15+7 -> 20191209 | D19: =D11 -> 100000 | E19: =C19+7 -> 20191216 | F19: =F11 -> 100000 | G19: 20191209 100000 | H19: 20191216 100000
C20: =C19 -> 20191209 | D20: 100000 | E20: 20191216 | F20: 100000 | G20: 20191209 100000 | H20: 20191216 100000
C21: =E19 -> 20191216 | D21: =D17 -> 100000 | E21: =C23 -> 20191223 | F21: =F17 -> 100000 | G21: 20191216 100000 | H21: 20191223 100000
C22: =C21 -> 20191216 | D22: 100000 | E22: 20191223 | F22: 100000 | G22: 20191216 100000 | H22: 20191223 100000
C23: =E19+7 -> 20191223 | D23: =D15 -> 100000 | E23: =C23+7 -> 20191230 | F23: =F15 -> 100000 | G23: 20191223 100000 | H23: 20191230 100000
C24: =C23 -> 20191223 | D24: 100000 | E24: 20191230 | F24: 100000 | G24: 20191223 100000 | H24: 20191230 100000
C25: =E23 -> 20191230 | D25: =D21 -> 100000 | E25: 20200106 | F25: =F21 -> 100000 | G25: 20191230 100000 | H25: 20200106 100000
C26: =C25 -> 20191230 | D26: 100000 | E26: 20200106 | F26: 100000 | G26: 20191230 100000 | H26: 20200106 100000
C27: =E25 -> 20200106 | D27: =D23 -> 100000 | E27: =C29 -> 20200113 | F27: =F23 -> 100000 | G27: 20200106 100000 | H27: 20200113 100000
C28: =C27 -> 20200106 | D28: 100000 | E28: 20200113 | F28: 100000 | G28: 20200106 100000 | H28: 20200113 100000
C29: =E25+7 -> 20200113 | D29: =D19 -> 100000 | E29: =C29+7 -> 20200120 | F29: =F19 -> 100000 | G29: 20200113 100000 | H29: 20200120 100000
C30: =C29 -> 20200113 | D30: 100000 | E30: 20200120 | F30: 100000 | G30: 20200113 100000 | H30: 20200120 100000
C31: =E29 -> 20200120 | D31: =D27 -> 100000 | E31: =C31+7 -> 20200127 | F31: =F27 -> 100000 | G31: 20200120 100000 | H31: 20200127 100000
C32: =C31 -> 20200120 | D32: 100000 | E32: 20200127 | F32: 100000 | G32: 20200120 100000 | H32: 20200127 100000
C33: =E31 -> 20200127 | D33: =F31 -> 100000 | E33: 20200203 | F33: =F31 -> 100000 | G33: 20200127 100000 | H33: 20200203 100000
C34: =C33 -> 20200127 | D34: 100000 | E34: 20200203 | F34: 100000 | G34: 20200127 100000 | H34: 20200203 100000
C35: =E33 -> 20200203 | D35: =D31 -> 100000 | E35: =C35+7 -> 20200210 | F35: =F31 -> 100000 | G35: 20200203 100000 | H35: 20200210 100000
C36: =C35 -> 20200203 | D36: 100000 | E36: 20200210 | F36: 100000 | G36: =C36&" "&D36 -> 20200203 100000 | H36: =E36&" "&F36 -> 20200210 100000
C37: =E35 -> 20200210 | D37: =F35 -> 100000 | E37: =C37+7 -> 20200217 | F37: =F35 -> 100000 | G37: 20200210 100000 | H37: 20200217 100000
C38: =C37 -> 20200210 | D38: 100000 | E38: 20200217 | F38: 100000 | G38: 20200210 100000 | H38: 20200217 100000
C39: =E37 -> 20200217 | D39: =D35 -> 100000 | E39: =C39+7 -> 20200224 | F39: =F35 -> 100000 | G39: 20200217 100000 | H39: 20200224 100000
C40: =C39 -> 20200217 | D40: 100000 | E40: 20200224 | F40: 100000 | G40: 20200217 100000 | H40: 20200224 100000
C41: =E39 -> 20200224 | D41: =F39 -> 100000 | E41: 20200302 | F41: =F39 -> 100000 | G41: 20200224 100000 | H41: 20200302 100000
C42: =C41 -> 20200224 | D42: 100000 | E42: 20200302 | F42: 100000 | G42: 20200224 100000 | H42: 20200302 100000
C43: =E41 -> 20200302 | D43: =D39 -> 100000 | E43: =C43+7 -> 20200309 | F43: =F39 -> 100000 | G43: 20200302 100000 | H43: 20200309 100000
C44: =C43 -> 20200302 | D44: 100000 | E44: 20200309 | F44: 100000 | G44: 20200302 100000 | H44: 20200309 100000
C45: =E43 -> 20200309 | D45: =D41 -> 100000 | E45: =C45+7 -> 20200316 | F45: =F41 -> 100000 | G45: 20200309 100000 | H45: 20200316 100000
C46: =C45 -> 20200309 | D46: 100000 | E46: 20200316 | F46: 100000 | G46: 20200309 100000 | H46: 20200316 100000
C47: =E45 -> 20200316 | D47: =D43 -> 100000 | E47: =C47+7 -> 20200323 | F47: =F43 -> 100000 | G47: 20200316 100000 | H47: 20200323 100000
C48: =C47 -> 20200316 | D48: 100000 | E48: 20200323 | F48: 100000 | G48: 20200316 100000 | H48: 20200323 100000
C49: =E47 -> 20200323 | D49: =D45 -> 100000 | E49: =C49+7 -> 20200330 | F49: =F45 -> 100000 | G49: 20200323 100000 | H49: 20200330 100000
C50: =C49 -> 20200323 | D50: 100000 | E50: 20200330 | F50: 100000 | G50: 20200323 100000 | H50: 20200330 100000
C51: =E49 -> 20200330 | D51: =D47 -> 100000 | E51: 20200406 | F51: =F47 -> 100000 | G51: 20200330 100000 | H51: 20200406 100000
C52: =C51 -> 20200330 | D52: 100000 | E52: 20200406 | F52: 100000 | G52: 20200330 100000 | H52: 20200406 100000
C53: =E51 -> 20200406 | D53: =D49 -> 100000 | E53: =C53+7 -> 20200413 | F53: =F49 -> 100000 | G53: 20200406 100000 | H53: 20200413 100000
C54: =C53 -> 20200406 | D54: 100000 | E54: 20200413 | F54: 100000 | G54: 20200406 100000 | H54: 20200413 100000
C55: =E53 -> 20200413 | D55: =D51 -> 100000 | E55: =C55+7 -> 20200420 | F55: =F51 -> 100000 | G55: 20200413 100000 | H55: 20200420 100000
C56: =C55 -> 20200413 | D56: 100000 | E56: 20200420 | F56: 100000 | G56: 20200413 100000 | H56: 20200420 100000
C57: =E55 -> 20200420 | D57: =D53 -> 100000 | E57: =C57+7 -> 20200427 | F57: =F53 -> 100000 | G57: 20200420 100000 | H57: 20200427 100000
C58: =C57 -> 20200420 | D58: 100000 | E58: 20200427 | F58: 100000 | G58: 20200420 100000 | H58: 20200427 100000
C59: =E57 -> 20200427 | D59: =D55 -> 100000 | E59: 20200504 | F59: =F55 -> 100000 | G59: 20200427 100000 | H59: 20200504 100000
C60: =C59 -> 20200427 | D60: 100000 | E60: 20200504 | F60: 100000 | G60: 20200427 100000 | H60: 20200504 100000
C61: =E59 -> 20200504 | D61: =D57 -> 100000 | E61: =C61+7 -> 20200511 | F61: =F57 -> 100000 | G61: 20200504 100000 | H61: 20200511 100000
C62: =C61 -> 20200504 | D62: 100000 | E62: 20200511 | F62: 100000 | G62: 20200504 100000 | H62: 20200511 100000
C63: =E61 -> 20200511 | D63: =D59 -> 100000 | E63: =C63+7 -> 20200518 | F63: =F59 -> 100000 | G63: 20200511 100000 | H63: 20200518 100000
C64: =C63 -> 20200511 | D64: 100000 | E64: 20200518 | F64: 100000 | G64: 20200511 100000 | H64: 20200518 100000
C65: =E63 -> 20200518 | D65: =D61 -> 100000 | E65: =C65+7 -> 20200525 | F65: =F61 -> 100000 | G65: 20200518 100000 | H65: 20200525 100000
C66: =C65 -> 20200518 | D66: 100000 | E66: 20200525 | F66: 100000 | G66: 20200518 100000 | H66: 20200525 100000
C67: =E65 -> 20200525 | D67: =D63 -> 100000 | E67: 20200601 | F67: =F63 -> 100000 | G67: 20200525 100000 | H67: 20200601 100000
C68: =C67 -> 20200525 | D68: 100000 | E68: 20200601 | F68: 100000 | G68: =C68&" "&D68 -> 20200525 100000 | H68: =E68&" "&F68 -> 20200601 100000
